bitfinex/quotes_BTCUSD_20230405
["timestamp","ask_amount","ask_price","bid_price","bid_amount"]
[1680704557735,0.35671056,28194.0,28189.0,0.03713069]
[1680704558153,0.35671056,28194.0,28190.0,0.033514]
[1680704558580,0.002,28194.0,28190.0,0.05364469]
[1680704558799,0.002,28194.0,28191.0,0.034479]
[1680704559026,0.002,28194.0,28190.0,0.034061]
[1680704559249,0.002,28194.0,28190.0,0.06415169]
[1680704559463,0.002,28194.0,28192.0,0.0839]
[1680704559679,0.002,28194.0,28193.0,0.47200056]
[1680704559888,0.002,28194.0,28193.0,0.48201788]
[1680704560095,0.02376001,28195.0,28193.0,0.48189788]
[1680704560310,0.02376001,28195.0,28194.0,0.116421]
[1680704560576,0.02376001,28195.0,28194.0,0.033321]
[1680704560778,0.02376001,28195.0,28194.0,0.043281]
[1680704561187,0.02376001,28195.0,28194.0,0.033321]
[1680704561393,0.02376001,28195.0,28194.0,0.061321]
[1680704562067,0.02376001,28195.0,28194.0,0.033321]
[1680704562483,0.02376001,28195.0,28190.0,0.00996]
[1680704562695,0.52036738,28195.0,28191.0,0.034045]
[1680704562914,0.37847057,28195.0,28191.0,0.034045]
[1680704563154,0.37847057,28195.0,28194.0,0.009]
[1680704563361,0.37847057,28195.0,28192.0,0.00996]
[1680704563572,0.37847057,28195.0,28193.0,0.034835]
[1680704563992,0.38047057,28195.0,28194.0,0.001]
[1680704564429,0.37847057,28195.0,28192.0,0.00996]
[1680704564646,0.38047057,28195.0,28193.0,0.036284]
[1680704564872,0.37847057,28195.0,28193.0,0.035284]
[1680704565091,0.37847057,28195.0,28191.0,0.033012]
[1680704565564,0.38068057,28195.0,28194.0,0.001]
[1680704566242,0.38047057,28195.0,28194.0,0.001]
[1680704566466,0.37868057,28195.0,28191.0,0.00996]
[1680704566691,0.38068057,28195.0,28193.0,0.001]
[1680704566907,0.37868057,28195.0,28192.0,0.033389]
[1680704567148,0.38068057,28195.0,28194.0,0.001]
[1680704567359,0.38068057,28195.0,28191.0,0.00996]
[1680704567360,0.37868057,28195.0,28191.0,0.00996]
[1680704567565,0.38047057,28195.0,28193.0,0.001]
[1680704567773,0.38068057,28195.0,28193.0,0.001]
[1680704567983,0.37847057,28195.0,28191.0,0.00996]
[1680704568193,0.37313962,28195.0,28194.0,0.001]
[1680704568438,0.01642906,28195.0,28192.0,0.033348]
[1680704568647,0.01642906,28195.0,28192.0,0.043308]
[1680704568866,0.01642906,28195.0,28193.0,0.032934]
[1680704569097,0.01642906,28195.0,28190.0,0.07581074]
[1680704569361,0.15832587,28195.0,28192.0,0.00996]
[1680704569565,0.01842906,28195.0,28193.0,0.026002]
[1680704569803,0.01842906,28195.0,28193.0,0.001]
[1680704570046,0.01842906,28195.0,28193.0,0.025285]
[1680704570271,0.01642906,28195.0,28193.0,0.024285]
[1680704571036,0.01642906,28195.0,28193.0,0.039285]
[1680704571291,0.01642906,28195.0,28194.0,0.023904]
[1680704571535,0.01642906,28195.0,28193.0,0.009]
[1680704571775,0.01642906,28195.0,28194.0,0.023205]
[1680704572871,0.01642906,28195.0,28193.0,0.026557]
[1680704573138,0.01642906,28195.0,28194.0,0.16949314]
[1680704573322,0.01642906,28195.0,28194.0,0.5482907]
[1680704573323,0.01842906,28195.0,28194.0,0.5482907]
[1680704573565,0.01842906,28195.0,28194.0,0.56757756]
[1680704573566,0.01642906,28195.0,28194.0,0.56757756]
[1680704573779,0.01642906,28195.0,28194.0,1.18599699]
[1680704573991,0.01642906,28195.0,28194.0,0.68335424]
[1680704574422,0.01642906,28195.0,28194.0,0.68535424]
[1680704575073,0.01642906,28195.0,28194.0,0.431247]
[1680704575485,0.01642906,28195.0,28194.0,0.429247]
[1680704575686,0.01642906,28195.0,28194.0,0.81195756]
[1680704575893,0.01642906,28195.0,28194.0,0.78395756]
[1680704576173,0.01642906,28195.0,28194.0,0.81195756]
[1680704576360,0.01642906,28195.0,28194.0,0.64388374]
[1680704576577,0.01642906,28195.0,28194.0,0.049636]
[1680704577022,0.01642906,28195.0,28194.0,0.26177952]
[1680704577237,0.01642906,28195.0,28194.0,0.21933275]
[1680704577450,0.01642906,28195.0,28194.0,0.43147627]
[1680704577659,0.01642906,28195.0,28194.0,0.21933275]
[1680704579894,0.01642906,28195.0,28194.0,0.34407498]
[1680704580048,0.01642906,28195.0,28194.0,0.17437823]
[1680704580702,0.01642906,28195.0,28194.0,0.21681275]
[1680704581103,0.01642906,28195.0,28194.0,0.42895627]
[1680704581332,0.01642906,28195.0,28194.0,0.21681275]
[1680704581484,0.51610506,28195.0,28194.0,0.21681275]
[1680704581675,0.51631506,28195.0,28194.0,0.21681275]
[1680704582942,0.51631506,28195.0,28194.0,0.25925952]
[1680704583159,0.51631506,28195.0,28194.0,0.21677469]
[1680704583369,0.51631506,28195.0,28194.0,0.25925952]
[1680704583814,0.51631506,28195.0,28194.0,0.047116]
[1680704584438,0.51631506,28195.0,28194.0,0.25914783]
[1680704584668,0.51631506,28195.0,28194.0,0.25914789]
[1680704585511,0.51631506,28195.0,28194.0,0.42877419]
[1680704585933,0.51631506,28195.0,28194.0,0.2167423]
[1680704587039,0.51631506,28195.0,28194.0,0.23114789]
[1680704587242,0.51631506,28195.0,28194.0,0.25314789]
[1680704587448,0.51631506,28195.0,28194.0,0.019116]
[1680704587658,0.52031506,28195.0,28194.0,0.00246]
[1680704587869,0.51631506,28195.0,28194.0,0.00246]
[1680704588082,0.51631506,28195.0,28194.0,0.00546]
[1680704588295,0.51631506,28195.0,28194.0,0.23314436]
[1680704588531,0.51631506,28195.0,28194.0,0.08211643]
[1680704588754,0.51010506,28195.0,28194.0,0.09811643]
[1680704588976,0.51010506,28195.0,28194.0,0.19811643]
[1680704589180,0.51010506,28195.0,28194.0,0.09829643]
[1680704589406,0.51010506,28195.0,28194.0,0.09823643]
[1680704589606,0.51010506,28195.0,28194.0,0.18223643]
[1680704589821,0.51010506,28195.0,28194.0,0.19829643]
[1680704590031,0.51010506,28195.0,28194.0,0.48229643]
[1680704590246,0.51010506,28195.0,28194.0,0.49829643]
[1680704590664,0.50750506,28195.0,28194.0,0.49829643]
[1680704591558,0.50750506,28195.0,28194.0,0.39829643]
[1680704592386,0.50750506,28195.0,28194.0,0.03428]
[1680704592592,0.50750506,28195.0,28194.0,0.0341]
[1680704593246,0.50750506,28195.0,28194.0,0.1341]
[1680704594309,0.50750506,28195.0,28194.0,0.19817103]
[1680704594510,0.50750506,28195.0,28194.0,0.19835103]
[1680704594719,0.50750506,28195.0,28194.0,0.09835103]
[1680704594959,0.50771506,28195.0,28194.0,0.09817103]
[1680704595167,0.50771506,28195.0,28194.0,0.0341]
[1680704597520,0.50771506,28195.0,28194.0,0.09811385]
[1680704597969,0.50771506,28195.0,28194.0,0.0341]
[1680704598704,0.50771506,28195.0,28194.0,0.09811724]
[1680704599818,0.50771506,28195.0,28194.0,0.19811724]
[1680704600908,0.50771506,28195.0,28194.0,0.09811724]
[1680704602198,0.50771506,28195.0,28194.0,0.19811724]
[1680704603077,0.50771506,28195.0,28194.0,0.45222448]
[1680704603958,0.50771506,28195.0,28194.0,0.19811724]
[1680704604620,0.50771506,28195.0,28194.0,0.45275685]
[1680704604829,0.50771506,28195.0,28194.0,0.49811724]
[1680704605516,0.50750506,28195.0,28194.0,0.49823724]
[1680704605795,0.50750506,28195.0,28194.0,0.8530078]
[1680704606779,0.50750506,28195.0,28194.0,0.9368078]
[1680704607690,0.49576757,28195.0,28194.0,0.9368078]
[1680704608365,0.49576757,28195.0,28194.0,0.39829724]
[1680704608581,0.49576757,28195.0,28194.0,0.39823724]
[1680704608802,0.49576757,28195.0,28194.0,0.4529478]
[1680704609029,0.49576757,28195.0,28194.0,0.7529478]
[1680704609476,0.49576757,28195.0,28194.0,0.65291909]
[1680704609702,0.49597757,28195.0,28194.0,0.35283199]
[1680704610353,0.49597757,28195.0,28194.0,0.36283199]
[1680704612082,0.49597757,28195.0,28194.0,0.10811724]
[1680704612373,0.48648757,28195.0,28194.0,0.10811724]
[1680704613225,0.48648757,28195.0,28194.0,0.10854413]
[1680704615127,0.48648757,28195.0,28194.0,0.36333676]
[1680704615338,0.48648757,28195.0,28194.0,0.36351676]
[1680704616184,0.4719273,28195.0,28194.0,0.36351676]
[1680704616391,0.4719273,28195.0,28194.0,0.10872413]
[1680704616605,0.4669273,28195.0,28194.0,0.36333752]
[1680704616821,0.4669273,28195.0,28194.0,0.36351752]
[1680704617027,0.4669273,28195.0,28194.0,0.10872413]
[1680704617242,0.4669273,28195.0,28194.0,0.10854413]
[1680704618095,0.4669273,28195.0,28194.0,0.20854413]
[1680704618307,0.4669273,28195.0,28194.0,0.20866413]
[1680704619630,0.4669273,28195.0,28194.0,0.20823724]
[1680704620077,0.4669273,28195.0,28194.0,0.5629478]
[1680704620290,0.4669273,28195.0,28194.0,0.5630078]
[1680704620919,0.4304486,28195.0,28194.0,0.5630078]
[1680704621361,0.4304486,28195.0,28194.0,0.93925334]
[1680704623129,0.21910374,28195.0,28194.0,1.23925334]
[1680704623351,0.21910374,28195.0,28194.0,1.04731091]
[1680704623565,0.21910374,28195.0,28194.0,1.05571091]
[1680704623782,0.21910374,28195.0,28194.0,0.7605478]
[1680704623995,0.21910374,28195.0,28194.0,0.7630078]
[1680704624207,0.21910374,28195.0,28194.0,0.7470078]
[1680704624426,0.21910374,28195.0,28194.0,0.7690078]
[1680704625286,0.21910374,28195.0,28194.0,1.18077539]
[1680704625506,0.21910374,28195.0,28194.0,0.8047083]
[1680704625758,0.21910374,28195.0,28194.0,1.18077518]
[1680704625986,0.21910374,28195.0,28194.0,0.8047083]
[1680704626220,0.21910374,28195.0,28194.0,1.18125023]
[1680704627086,0.21910374,28195.0,28194.0,0.80513519]
[1680704627782,0.21910374,28195.0,28194.0,0.78313519]
[1680704629090,0.21910374,28195.0,28194.0,0.81113519]
[1680704629437,0.21910374,28195.0,28194.0,1.00343519]
[1680704629845,0.21910374,28195.0,28194.0,0.97543519]
[1680704630096,0.21910374,28195.0,28194.0,1.00343519]
[1680704630541,0.21910374,28195.0,28194.0,1.35823519]
[1680704631609,0.21910374,28195.0,28194.0,1.33023519]
[1680704631813,0.21910374,28195.0,28194.0,1.35823519]
[1680704632022,0.21910374,28195.0,28194.0,1.33023519]
[1680704632216,0.21910374,28195.0,28194.0,1.3298083]
[1680704632420,0.21910374,28195.0,28194.0,1.3578083]
[1680704633035,0.21910374,28195.0,28194.0,1.3298083]
[1680704633435,0.21910374,28195.0,28194.0,0.9107083]
[1680704634505,0.21910374,28195.0,28194.0,0.8827083]
[1680704634725,0.21910374,28195.0,28194.0,0.9107083]
[1680704634933,0.21910374,28195.0,28194.0,0.8827083]
[1680704635143,0.21910374,28195.0,28194.0,0.9192083]
[1680704635790,0.21033574,28195.0,28194.0,0.8912083]
[1680704636011,0.13553209,28200.0,28194.0,1.11808653]
[1680704636229,0.13553209,28200.0,28199.0,0.35471056]
[1680704636230,0.08759656,28200.0,28199.0,0.35471056]
[1680704636463,0.0028889,28200.0,28199.0,0.85949225]
[1680704636685,0.00701089,28201.0,28200.0,0.1]
[1680704636901,0.75196692,28205.0,28200.0,0.59193]
[1680704637103,0.75187692,28205.0,28204.0,0.0838]
[1680704637307,0.75187692,28205.0,28204.0,0.40541804]
[1680704637515,0.75208692,28205.0,28204.0,1.06267804]
[1680704637773,0.75208692,28205.0,28204.0,1.12669528]
[1680704637988,0.75208692,28205.0,28204.0,0.8508069]
[1680704638199,0.75208692,28205.0,28204.0,1.1993268]
[1680704638424,0.74743692,28205.0,28204.0,1.1993268]
[1680704638639,0.74722692,28205.0,28204.0,1.1995068]
[1680704638860,0.74722692,28205.0,28204.0,1.1910068]
[1680704639089,0.74722692,28205.0,28204.0,0.7524068]
[1680704639307,0.74722692,28205.0,28204.0,1.0069225]
[1680704639527,0.74743692,28205.0,28204.0,0.68820956]
[1680704641099,0.74743692,28205.0,28204.0,1.00648029]
[1680704641310,0.74743692,28205.0,28204.0,0.97878773]
[1680704642018,0.74743692,28205.0,28204.0,0.78772698]
[1680704642450,0.74743692,28205.0,28204.0,1.04202789]
[1680704643326,0.74743692,28205.0,28204.0,0.78772698]
[1680704644174,0.00021,28205.0,28204.0,1.04202637]
[1680704644385,0.02376001,28209.0,28204.0,1.04202637]
[1680704644593,0.02376001,28209.0,28208.0,0.16953973]
[1680704644800,0.02376001,28209.0,28208.0,0.18638673]
[1680704645015,0.02376001,28209.0,28208.0,0.18884673]
[1680704645438,0.02376001,28209.0,28208.0,0.54355729]
[1680704645875,0.02376001,28209.0,28208.0,0.58594222]
[1680704646308,0.02376001,28209.0,28208.0,0.58694222]
[1680704646522,0.01376001,28209.0,28208.0,0.73831756]
[1680704646737,0.01376001,28209.0,28208.0,0.72981756]
[1680704646945,0.01376001,28209.0,28208.0,0.58693951]
[1680704647587,0.00376001,28209.0,28208.0,0.58693951]
[1680704647795,0.00376001,28209.0,28208.0,0.37501756]
[1680704648034,0.00376001,28209.0,28208.0,0.37401756]
[1680704648475,0.01752002,28212.0,28209.0,0.1]
[1680704648707,0.01752002,28212.0,28211.0,0.35471056]
[1680704648919,0.01752002,28212.0,28211.0,0.59058543]
[1680704649134,2.502e-05,28212.0,28211.0,0.84488519]
[1680704649371,2.502e-05,28212.0,28211.0,1.24085075]
[1680704649576,0.02376001,28213.0,28212.0,0.13507]
[1680704649577,0.01378503,28213.0,28212.0,0.13507]
[1680704649787,0.01378503,28213.0,28212.0,0.93425754]
[1680704650018,0.01378503,28213.0,28212.0,0.93671754]
[1680704650233,0.01378503,28213.0,28212.0,0.94521754]
[1680704650440,0.01378503,28213.0,28212.0,1.2260892]
[1680704650684,0.00378503,28213.0,28212.0,1.05680401]
[1680704650891,0.00378503,28213.0,28212.0,1.1144892]
[1680704651099,0.00378503,28213.0,28212.0,0.97320401]
[1680704651316,0.00378503,28213.0,28212.0,0.84625356]
[1680704651734,0.00378503,28213.0,28212.0,1.36888057]
[1680704651954,0.00378503,28213.0,28212.0,1.58852401]
[1680704652166,0.00378503,28213.0,28212.0,1.70793343]
[1680704652376,0.00378503,28213.0,28212.0,1.67993343]
[1680704652585,0.00378503,28213.0,28212.0,1.70793343]
[1680704652791,0.00378503,28213.0,28212.0,1.72226817]
[1680704653000,0.00378503,28213.0,28212.0,1.96218463]
[1680704653243,0.01889504,28214.0,28213.0,0.1]
[1680704653456,0.01889504,28214.0,28213.0,1.02532569]
[1680704653676,0.01889504,28214.0,28213.0,1.46724102]
[1680704654117,0.01889504,28214.0,28213.0,1.38188189]
[1680704654333,0.02317009,28215.0,28214.0,0.13507]
[1680704654550,0.01804196,28215.0,28214.0,1.06677013]
[1680704654775,0.01804196,28215.0,28214.0,1.06923013]
[1680704654993,0.01804196,28215.0,28214.0,1.42353013]
[1680704655214,0.01804196,28215.0,28214.0,0.93123013]
[1680704655454,0.01804196,28215.0,28214.0,0.76250556]
[1680704655679,0.01804196,28215.0,28214.0,0.40820556]
[1680704656138,0.01804196,28215.0,28214.0,0.43620556]
[1680704656342,0.00906696,28215.0,28214.0,0.43620556]
[1680704656775,0.00906696,28215.0,28214.0,0.41670556]
[1680704656984,0.00906696,28215.0,28214.0,0.44470556]
[1680704657220,0.00906696,28215.0,28214.0,0.41670556]
[1680704657649,0.00906696,28215.0,28214.0,0.40820556]
[1680704657870,0.00906696,28215.0,28214.0,0.70820556]
[1680704658294,0.00906696,28215.0,28214.0,0.73620556]
[1680704658540,0.00906696,28215.0,28214.0,0.70820556]
[1680704658749,0.00906696,28215.0,28214.0,0.74470556]
[1680704660452,0.00906696,28215.0,28214.0,0.84470556]
[1680704660663,0.00906696,28215.0,28214.0,1.06181942]
[1680704660873,0.00906696,28215.0,28214.0,0.70751942]
[1680704661295,0.00906696,28215.0,28214.0,0.70505942]
[1680704661525,0.00906696,28215.0,28214.0,0.70751942]
[1680704661733,0.00906696,28215.0,28214.0,0.78338734]
[1680704661946,0.00906696,28215.0,28214.0,0.69901942]
[1680704663933,0.00025596,28215.0,28214.0,0.70751942]
[1680704666054,0.14215277,28215.0,28214.0,0.046425]
[1680704666277,0.08355596,28215.0,28214.0,0.03046]
[1680704666492,0.08355596,28215.0,28214.0,0.028]
[1680704666923,0.08355596,28215.0,28214.0,0.03046]
[1680704667138,0.08355596,28215.0,28214.0,0.00246]
[1680704667352,0.08355596,28215.0,28214.0,0.01146]
[1680704667575,0.08355596,28215.0,28214.0,0.00246]
[1680704668011,0.08355596,28215.0,28214.0,0.00546]
[1680704668220,0.08355596,28215.0,28213.0,0.00246]
[1680704668433,0.0838,28214.0,28213.0,0.35717056]
[1680704668878,0.0838,28214.0,28213.0,0.37472856]
[1680704669527,0.08426596,28215.0,28213.0,0.37472856]
[1680704669737,0.08405596,28215.0,28214.0,0.37038156]
[1680704669961,0.08405596,28215.0,28214.0,0.37284156]
[1680704670459,0.08405596,28215.0,28214.0,0.00246]
[1680704670677,0.08405596,28215.0,28213.0,0.01146]
[1680704670892,0.0836,28214.0,28213.0,0.00246]
[1680704671109,0.0836,28214.0,28209.0,0.3]
[1680704671323,0.0838,28213.0,28210.0,0.37037556]
[1680704671556,0.0838,28213.0,28211.0,0.016621]
[1680704671778,0.0838,28213.0,28211.0,0.019081]
[1680704671991,0.0838,28213.0,28212.0,0.00246]
[1680704672415,0.00046596,28215.0,28213.0,0.1]
[1680704672632,0.08385596,28215.0,28214.0,0.37072756]
[1680704672840,0.08385596,28215.0,28214.0,0.37318756]
[1680704673496,0.08385596,28215.0,28214.0,0.018477]
[1680704673706,0.08385596,28215.0,28214.0,0.00246]
[1680704674127,0.08385596,28215.0,28214.0,0.002]
[1680704674349,0.08385596,28215.0,28214.0,0.018899]
[1680704674560,0.08366747,28215.0,28214.0,0.00446]
[1680704676062,0.08366747,28215.0,28214.0,0.020579]
[1680704677165,0.10757001,28218.0,28214.0,0.37528956]
[1680704677396,0.10757001,28218.0,28215.0,0.75631494]
[1680704677397,0.02376001,28218.0,28215.0,0.75631494]
[1680704677617,0.02376001,28218.0,28216.0,0.10044638]
[1680704677867,0.02376001,28218.0,28217.0,0.37087756]
[1680704678091,0.02376001,28218.0,28217.0,0.45789594]
[1680704678314,0.02376001,28218.0,28217.0,0.37333756]
[1680704678726,0.02776001,28218.0,28217.0,0.37333756]
[1680704679590,0.02376001,28218.0,28217.0,0.37333756]
[1680704679792,0.02776001,28218.0,28217.0,0.37433756]
[1680704680019,0.02376001,28218.0,28217.0,0.016167]
[1680704680225,0.02376001,28218.0,28217.0,0.340627]
[1680704680663,0.02376001,28218.0,28217.0,0.02446]
[1680704680664,0.10756001,28218.0,28217.0,0.02446]
[1680704680874,0.10756001,28218.0,28217.0,0.10655838]
[1680704681080,0.10756001,28218.0,28217.0,0.23116991]
[1680704681281,0.10756001,28218.0,28217.0,0.25085669]
[1680704681486,0.10756001,28218.0,28217.0,0.23337069]
[1680704681771,0.10756001,28218.0,28217.0,0.10670516]
[1680704681986,0.02376001,28218.0,28217.0,0.12475016]
[1680704682416,0.02376001,28218.0,28217.0,0.22929569]
[1680704682621,0.02376001,28218.0,28217.0,0.11175016]
[1680704683262,0.02376001,28218.0,28217.0,0.59300625]
[1680704683468,0.02376001,28218.0,28217.0,0.50830109]
[1680704684280,0.02376001,28218.0,28217.0,0.66802566]
[1680704684551,0.02376001,28218.0,28217.0,0.49930109]
[1680704685419,0.02376001,28218.0,28217.0,0.38175556]
[1680704685631,0.02376001,28218.0,28217.0,0.68175556]
[1680704685855,0.02376001,28218.0,28217.0,0.93618516]
[1680704686073,0.02376001,28218.0,28217.0,0.93624516]
[1680704686493,0.02376001,28218.0,28217.0,0.68193556]
[1680704691042,0.02376001,28218.0,28217.0,0.93624516]
[1680704691252,0.02376001,28218.0,28217.0,0.99921497]
[1680704691456,0.02376001,28218.0,28217.0,0.78193556]
[1680704693751,0.02376001,28218.0,28217.0,0.68193556]
[1680704694769,0.02376001,28218.0,28217.0,0.93624516]
[1680704696723,0.02376001,28218.0,28217.0,0.95384827]
[1680704697472,0.02366777,28218.0,28217.0,0.95366827]
[1680704699392,0.02366777,28218.0,28217.0,0.93606516]
[1680704700456,0.02366777,28218.0,28217.0,0.68175556]
[1680704700841,0.02366777,28218.0,28217.0,0.93606516]
[1680704701041,0.02366777,28218.0,28217.0,0.68175556]
[1680704702201,0.02366777,28218.0,28217.0,0.93606516]
[1680704704697,0.02366777,28218.0,28217.0,0.68175556]
[1680704704905,0.02366777,28218.0,28217.0,0.327045]
[1680704705110,0.01866777,28218.0,28217.0,0.327045]
[1680704705554,0.68631792,28218.0,28217.0,0.24974073]
[1680704705793,0.72729392,28218.0,28216.0,0.08476257]
[1680704706013,0.55971656,28217.0,28214.0,0.21190643]
[1680704706232,0.040196,28216.0,28215.0,0.00042673]
[1680704706448,0.56230656,28216.0,28215.0,0.00042673]
[1680704706661,0.56251656,28216.0,28215.0,0.00042673]
[1680704706889,0.55751656,28216.0,28215.0,0.00042673]
[1680704707712,0.57051656,28216.0,28215.0,0.00242673]
[1680704708434,0.55730656,28216.0,28215.0,0.00042673]
[1680704709305,0.57030656,28216.0,28215.0,0.00242673]
[1680704709512,0.52211056,28216.0,28215.0,0.00042673]
[1680704709740,0.57614956,28216.0,28215.0,0.00242673]
[1680704711869,0.96380229,28216.0,28213.0,0.08476257]
[1680704712076,0.96380229,28216.0,28212.0,0.08494257]
[1680704712077,0.1674,28214.0,28212.0,0.08494257]
[1680704712289,0.52231056,28213.0,28212.0,0.08494257]
[1680704712497,0.56405756,28213.0,28212.0,0.00018]
[1680704712718,0.56405756,28213.0,28212.0,0.08494257]
[1680704712938,0.56405756,28213.0,28212.0,0.00018]
[1680704713169,0.56405756,28213.0,28211.0,0.08494257]
[1680704713170,0.63048432,28213.0,28211.0,0.08494257]
[1680704713373,0.845246,28212.0,28211.0,0.00018]
[1680704713600,1.32739489,28212.0,28210.0,0.00018]
[1680704713824,0.88120856,28211.0,28210.0,0.00018]
[1680704714057,0.88080856,28211.0,28209.0,0.08494257]
[1680704714266,0.27301869,28210.0,28209.0,0.00018]
[1680704714481,1.11422925,28210.0,28207.0,0.00018]
[1680704714748,0.52132417,28209.0,28206.0,0.08494257]
[1680704714954,0.2673,28207.0,28206.0,0.08494257]
[1680704715160,0.65991456,28207.0,28206.0,0.08494257]
[1680704715397,0.55991456,28207.0,28206.0,0.00018]
[1680704715599,0.55991456,28207.0,28205.0,0.00213]
[1680704715784,0.56298856,28206.0,28205.0,0.00213]
[1680704716047,0.56298856,28206.0,28205.0,0.00225]
[1680704716255,0.56298856,28206.0,28205.0,0.00213]
[1680704716669,0.58998856,28206.0,28205.0,0.00213]
[1680704717085,0.56298856,28206.0,28205.0,0.00213]
[1680704717300,0.68075246,28206.0,28205.0,0.00213]
[1680704717725,0.69493346,28206.0,28205.0,0.00213]
[1680704717937,0.79493346,28206.0,28205.0,0.00213]
[1680704718148,0.82193346,28206.0,28205.0,0.00213]
[1680704718356,0.79493346,28206.0,28205.0,0.00213]
[1680704718584,0.82193346,28206.0,28205.0,0.00213]
[1680704719673,1.14040693,28206.0,28205.0,0.00213]
[1680704719906,1.11340693,28206.0,28205.0,0.00213]
[1680704720116,1.35140693,28206.0,28205.0,0.00213]
[1680704720327,0.59006203,28206.0,28205.0,0.02226069]
[1680704720559,0.1108,28206.0,28205.0,0.02226069]
[1680704720763,0.1108,28206.0,28205.0,0.00213]
[1680704720764,0.027,28206.0,28205.0,0.00213]
[1680704720995,0.0642054,28207.0,28205.0,0.00213]
[1680704721245,0.009,28206.0,28205.0,0.00413]
[1680704721458,0.0642054,28207.0,28205.0,0.00213]
[1680704721671,0.001,28206.0,28205.0,0.00913]
[1680704721879,0.001,28206.0,28205.0,0.00213]
[1680704721880,0.0838,28206.0,28205.0,0.00213]
[1680704722307,0.0848,28206.0,28205.0,0.00913]
[1680704722520,0.0838,28206.0,28205.0,0.00213]
[1680704722725,0.0898,28206.0,28205.0,0.00213]
[1680704722930,0.0838,28206.0,28205.0,0.00213]
[1680704723830,0.43851056,28206.0,28205.0,0.00213]
[1680704724044,0.56275556,28206.0,28205.0,0.00213]
[1680704724252,0.57175556,28206.0,28205.0,0.00313]
[1680704724459,0.56275556,28206.0,28205.0,0.00213]
[1680704724664,0.66891112,28206.0,28205.0,0.00313]
[1680704724878,0.66509212,28206.0,28205.0,0.00213]
[1680704725116,1.00149212,28206.0,28205.0,0.00313]
[1680704725321,1.00239212,28206.0,28205.0,0.00313]
[1680704725544,0.99289212,28206.0,28205.0,0.00213]
[1680704725755,0.99289212,28206.0,28205.0,0.00313]
[1680704725756,1.32489212,28206.0,28205.0,0.00313]
[1680704725962,1.30389212,28206.0,28205.0,0.00213]
[1680704726179,1.32489212,28206.0,28205.0,0.00313]
[1680704726602,0.91803656,28206.0,28205.0,0.00313]
[1680704727248,0.89703656,28206.0,28205.0,0.00213]
[1680704727457,0.91803656,28206.0,28205.0,0.00313]
[1680704727707,0.89703656,28206.0,28205.0,0.00213]
[1680704727926,0.89703656,28206.0,28205.0,0.00313]
[1680704727927,0.58435556,28206.0,28205.0,0.00313]
[1680704728146,0.47955556,28206.0,28205.0,0.00213]
[1680704728363,0.50055556,28206.0,28205.0,0.00313]
[1680704728575,0.50055556,28206.0,28205.0,0.00213]
[1680704728576,0.39515556,28206.0,28205.0,0.00213]
[1680704728788,0.41615556,28206.0,28205.0,0.00313]
[1680704729014,0.49935556,28206.0,28205.0,0.00313]
[1680704729224,0.55769212,28206.0,28205.0,0.00313]
[1680704729436,0.57187312,28206.0,28205.0,0.00313]
[1680704729645,0.55769212,28206.0,28205.0,0.00313]
[1680704729860,0.56619212,28206.0,28205.0,0.00313]
[1680704730337,0.66619212,28206.0,28205.0,0.00313]
[1680704730803,0.49935556,28206.0,28205.0,0.00313]
[1680704731442,0.49892903,28206.0,28205.0,0.00313]
[1680704731656,0.16391359,28206.0,28205.0,0.00120314]
[1680704731867,0.51862415,28206.0,28205.0,0.00120314]
[1680704732707,0.52801759,28206.0,28199.0,0.00138]
[1680704732930,0.0834,28204.0,28199.0,0.00144]
[1680704733123,0.0834,28204.0,28199.0,0.00018]
[1680704733124,0.49660737,28203.0,28199.0,0.00018]
[1680704733366,0.49660737,28203.0,28199.0,0.00144]
[1680704733578,0.039438,28202.0,28199.0,0.00144]
[1680704733787,0.35471056,28201.0,28199.0,0.00018]
[1680704733974,0.35471056,28201.0,28199.0,0.00118]
[1680704734209,0.039527,28200.0,28197.0,0.02178]
[1680704734416,0.35471056,28201.0,28197.0,0.02178]
[1680704734638,0.49660737,28201.0,28197.0,0.02178]
[1680704734842,0.43851056,28201.0,28199.0,0.001]
[1680704735032,0.042513,28200.0,28197.0,0.02178]
[1680704735267,0.43851056,28201.0,28197.0,0.02178]
[1680704735477,0.03934,28200.0,28197.0,0.02178]
[1680704735683,0.43851056,28201.0,28197.0,0.02178]
[1680704735888,0.40249562,28200.0,28197.0,0.02178]
[1680704736001,0.40749562,28200.0,28197.0,0.02278]
[1680704736810,0.40249562,28200.0,28197.0,0.02178]
[1680704737017,0.09078956,28199.0,28197.0,0.0226]
[1680704737263,0.09078956,28199.0,28197.0,0.0216]
[1680704737264,0.04862956,28199.0,28197.0,0.0216]
[1680704737408,0.04862956,28199.0,28197.0,0.0226]
[1680704737614,0.35971056,28200.0,28197.0,0.0226]
[1680704737815,0.35471056,28200.0,28197.0,0.0216]
[1680704739114,0.00021,28203.0,28197.0,0.0216]
[1680704739115,0.0832,28202.0,28197.0,0.0216]
[1680704739330,0.4055,28206.0,28198.0,0.02013069]
[1680704739331,0.005,28199.0,28198.0,0.02013069]
[1680704739539,0.03006256,28199.0,28198.0,0.017952]
[1680704739969,0.03006256,28199.0,28197.0,0.0216]
[1680704740187,0.04206256,28199.0,28198.0,0.020891]
[1680704740440,0.012,28199.0,28198.0,0.10583357]
[1680704740673,0.012,28199.0,28198.0,0.38430578]
[1680704740882,0.35471056,28205.0,28198.0,0.320071]
[1680704741094,0.60718162,28205.0,28199.0,0.02013069]
[1680704741303,0.60718162,28205.0,28199.0,0.02157069]
[1680704741304,0.43851056,28204.0,28199.0,0.02157069]
[1680704741526,0.25129104,28203.0,28199.0,0.00144]
[1680704741740,0.39380956,28202.0,28199.0,0.00126]
[1680704741955,0.041434,28201.0,28199.0,0.00144]
[1680704742169,0.39614456,28201.0,28199.0,0.00138]
[1680704742372,0.04069,28200.0,28199.0,6e-05]
[1680704742608,0.11049224,28200.0,28199.0,0.00126]
[1680704742811,0.11049224,28200.0,28199.0,0.001]
[1680704743028,0.11049224,28200.0,28198.0,0.00018]
[1680704743250,0.04061847,28199.0,28197.0,0.0216]
[1680704743461,0.05480247,28199.0,28197.0,0.0216]
[1680704743670,0.039552,28198.0,28197.0,0.0216]
[1680704743893,0.04890288,28200.0,28197.0,0.0216]
[1680704744109,0.053089,28199.0,28197.0,0.0216]
[1680704744321,0.041161,28198.0,28197.0,0.0216]
[1680704744754,0.014184,28199.0,28197.0,0.0216]
[1680704744967,0.014184,28199.0,28197.0,0.10636257]
[1680704745175,0.026184,28199.0,28197.0,0.0226]
[1680704745631,0.012,28199.0,28197.0,0.10736257]
[1680704747598,0.012,28199.0,28197.0,0.23450643]
[1680704748022,0.36671056,28199.0,28197.0,0.23450643]